Workbook

Sheet Regles du jeu
B1: Coût | C1: 2
B2: Nombre de tickets | C2: Taux | D2: Gain brut | E2: Gain net | F2: Tickets | G2: Argent redistribué
B3: =B12-SUM(B4:B11) -> 1172962 | C3: =B3/$B$12 -> 0.7819746667 | D3: 0 | E3: =D3-$C$1 -> -2 | F3: =B3*E3 -> -2345924
B4: 100000 | C4: =B4/$B$12 -> 0.06666666667 | D4: 2 | E4: =D4-$C$1 -> 0 | F4: 0 | G4: =SUM(B4*D4) -> 200000
B5: 157894 | C5: 0.1052626667 | D5: 4 | E5: 2 | F5: 315788 | G5: =SUM(B5*D5) -> 631576
B6: 50000 | C6: 0.03333333333 | D6: 10 | E6: 8 | F6: 400000 | G6: 500000
B7: 15000 | C7: 0.01 | D7: 20 | E7: 18 | F7: 270000 | G7: 300000
B8: 3530 | C8: 0.002353333333 | D8: 50 | E8: 48 | F8: 169440 | G8: 176500
B9: 600 | C9: 0.0004 | D9: 200 | E9: 198 | F9: 118800 | G9: 120000
B10: 12 | C10: 8e-06 | D10: 1000 | E10: 998 | F10: 11976 | G10: 12000
B11: 2 | C11: 1.333333333e-06 | D11: 20000 | E11: 19998 | F11: 39996 | G11: 40000
A12: Total | B12: 1500000 | C12: =SUM(C3:C11) -> 1
E13: Total redistribué | F13: =SUM(G4:G11) -> 1980076
E14: Espérance de gain | F14: =SUM(F3:F11)/B12 -> -0.6799493333

Sheet Test
B1: Gain brut | C1: Gain net | G1: Tickets | I1: Tirages (entre 1 et 1000) | J1: 1 | K1: Gain max ? | L1: Gain sans le max | M1: somme | N1: Max | O1: Détail des gains
A2: 0.7575706667 | B2: ='Regles du jeu'!D3 -> 0 | C2: ='Regles du jeu'!E3 -> -2 | D2: 1136356 | E2: 1500000 | F2: =1500000-D2 -> 363644 | G2: -1136356 | H2: 1 | I2: =ROUND(RAND()*(1500000-1),0) -> 146373 | J2: =IF($J$1<2,I2) -> 146373 | K2: =IF(I2<=$E$10,C10) -> FALSE | L2: =IF(I2>=$F$2,$C$2,(IF(I2>=$F$3,$C$3,IF(I2>=$F$4,$C$4,IF(I2>=$F$5,$C$5,IF(I2>=$F$6,$C$6,IF(I2>=$F$7,$C$7,IF(I2>=$F$8,$C$8,IF(I2>=$F$9,$C$9,IF(I2>=0,999)))))))))) -> 2 | M2: =SUM(O2) -> 2 | N2: =MAX(L2) -> 2 | O2: =IF(K2=FALSE,L2,L2) -> 2
A3: 0.074 | B3: ='Regles du jeu'!D4 -> 2 | C3: ='Regles du jeu'!E4 -> 0 | D3: 111000 | E3: =F2 -> 363644 | F3: =E3-D3 -> 252644 | G3: 0 | H3: 2 | I3: =ROUND(RAND()*(1500000-1),0) -> 963555 | J3: =IF($J$1<2,I3) -> 963555 | K3: =IF(I3<=$E$10,C11) -> FALSE | L3: =IF(I3>=$F$2,$C$2,(IF(I3>=$F$3,$C$3,IF(I3>=$F$4,$C$4,IF(I3>=$F$5,$C$5,IF(I3>=$F$6,$C$6,IF(I3>=$F$7,$C$7,IF(I3>=$F$8,$C$8,IF(I3>=$F$9,$C$9,IF(I3>=0,999)))))))))) -> -2 | M3: =SUM($O$2:O3) -> 0 | N3: =MAX($L$2:L3) -> 2 | O3: =IF(K3=FALSE,L3,C11) -> -2
A4: 0.1253333333 | B4: ='Regles du jeu'!D5 -> 4 | C4: ='Regles du jeu'!E5 -> 2 | D4: 188000 | E4: =F3 -> 252644 | F4: =E4-D4 -> 64644 | G4: 188000 | H4: 3 | I4: 117600 | J4: =IF($J$1<2,I4) -> 117600 | K4: FALSE | L4: 2 | M4: =SUM($O$2:O4) -> 2 | N4: =MAX($L$2:L4) -> 2 | O4: 2
A5: 0.02866666667 | B5: ='Regles du jeu'!D6 -> 10 | C5: ='Regles du jeu'!E6 -> 8 | D5: 43000 | E5: 64644 | F5: 21644 | G5: 172000 | H5: 4 | I5: 1486805 | J5: =IF($J$1<2,I5) -> 1486805 | K5: FALSE | L5: -2 | M5: =SUM($O$2:O5) -> 0 | N5: =MAX($L$2:L5) -> 2 | O5: -2
A6: 0.014 | B6: ='Regles du jeu'!D7 -> 20 | C6: ='Regles du jeu'!E7 -> 18 | D6: 21000 | E6: 21644 | F6: 644 | G6: 189000 | H6: 5 | I6: 1068155 | J6: 1068155 | K6: FALSE | L6: -2 | M6: =SUM($O$2:O6) -> -2 | N6: =MAX($L$2:L6) -> 2 | O6: -2
A7: 0.0003333333333 | B7: ='Regles du jeu'!D8 -> 50 | C7: ='Regles du jeu'!E8 -> 48 | D7: 500 | E7: 644 | F7: 144 | G7: 9500 | H7: 6 | I7: 40859 | J7: 40859 | K7: FALSE | L7: 8 | M7: =SUM($O$2:O7) -> 6 | N7: =MAX($L$2:L7) -> 8 | O7: 8 | Y7: Entrez un chiffre entre 1 et 1000 | AC7: 30
A8: 5.333333333e-05 | B8: ='Regles du jeu'!D9 -> 200 | C8: ='Regles du jeu'!E9 -> 198 | D8: 80 | E8: 144 | F8: 64 | G8: 3920 | H8: 7 | I8: 1227336 | J8: 1227336 | K8: FALSE | L8: -2 | M8: =SUM($O$2:O8) -> 4 | N8: =MAX($L$2:L8) -> 8 | O8: -2
A9: 4e-05 | B9: ='Regles du jeu'!D10 -> 1000 | C9: ='Regles du jeu'!E10 -> 998 | D9: 60 | E9: 64 | F9: 4 | G9: 14940 | H9: 8 | I9: 779026 | J9: 779026 | K9: FALSE | L9: -2 | M9: =SUM($O$2:O9) -> 2 | N9: =MAX($L$2:L9) -> 8 | O9: -2
A10: 2.666666667e-06 | B10: ='Regles du jeu'!D11 -> 20000 | C10: ='Regles du jeu'!E11 -> 19998 | D10: 4 | E10: 4 | F10: 0 | G10: 3996 | H10: 9 | I10: 716467 | J10: 716467 | K10: FALSE | L10: -2 | M10: =SUM($O$2:O10) -> 0 | N10: =MAX($L$2:L10) -> 8 | O10: -2
A11: 1500000 | H11: 10 | I11: 1347901 | J11: 1347901 | K11: FALSE | L11: -2 | M11: =SUM($O$2:O11) -> -2 | N11: =MAX($L$2:L11) -> 8 | O11: -2
H12: 11 | I12: 1417937 | J12: 1417937 | K12: FALSE | L12: -2 | M12: =SUM($O$2:O12) -> -4 | N12: =MAX($L$2:L12) -> 8 | O12: -2 | W12: Total des gain pour | Y12: =AC7 -> 30 | Z12: tickets achetés : | AB12: =LOOKUP(Y12,H:H,M:M) -> -28
H13: 12 | I13: 193608 | J13: 193608 | K13: FALSE | L13: 2 | M13: =SUM($O$2:O13) -> -2 | N13: =MAX($L$2:L13) -> 8 | O13: 2
H14: 13 | I14: 471799 | J14: 471799 | K14: FALSE | L14: -2 | M14: =SUM($O$2:O14) -> -4 | N14: =MAX($L$2:L14) -> 8 | O14: -2 | Z14: soit en moyenne | AB14: =AB12/Y12 -> -0.9333333333 | AC14: =IF(AB14<0,"de pertes par ticket","de gains par ticket") -> de pertes par ticket | AE14: (valeur théorique - espérance : | AH14: ='Regles du jeu'!F14 -> -0.6799493333 | AI14: )
H15: 14 | I15: 1185579 | J15: 1185579 | K15: FALSE | L15: -2 | M15: =SUM($O$2:O15) -> -6 | N15: =MAX($L$2:L15) -> 8 | O15: -2
H16: 15 | I16: 720697 | J16: 720697 | K16: FALSE | L16: -2 | M16: =SUM($O$2:O16) -> -8 | N16: =MAX($L$2:L16) -> 8 | O16: -2
H17: 16 | I17: 319422 | J17: 319422 | K17: FALSE | L17: 0 | M17: =SUM($O$2:O17) -> -8 | N17: =MAX($L$2:L17) -> 8 | O17: 0
H18: 17 | I18: 903398 | J18: 903398 | K18: FALSE | L18: -2 | M18: =SUM($O$2:O18) -> -10 | N18: =MAX($L$2:L18) -> 8 | O18: -2
H19: 18 | I19: 458583 | J19: 458583 | K19: FALSE | L19: -2 | M19: =SUM($O$2:O19) -> -12 | N19: =MAX($L$2:L19) -> 8 | O19: -2
H20: 19 | I20: 1048161 | J20: 1048161 | K20: FALSE | L20: -2 | M20: =SUM($O$2:O20) -> -14 | N20: =MAX($L$2:L20) -> 8 | O20: -2
H21: 20 | I21: 875238 | J21: 875238 | K21: FALSE | L21: -2 | M21: =SUM($O$2:O21) -> -16 | N21: =MAX($L$2:L21) -> 8 | O21: -2
H22: 21 | I22: 1286173 | J22: 1286173 | K22: FALSE | L22: -2 | M22: =SUM($O$2:O22) -> -18 | N22: =MAX($L$2:L22) -> 8 | O22: -2
H23: 22 | I23: 1025775 | J23: 1025775 | K23: FALSE | L23: -2 | M23: =SUM($O$2:O23) -> -20 | N23: =MAX($L$2:L23) -> 8 | O23: -2
H24: 23 | I24: 906323 | J24: 906323 | K24: FALSE | L24: -2 | M24: =SUM($O$2:O24) -> -22 | N24: =MAX($L$2:L24) -> 8 | O24: -2
H25: 24 | I25: 1191544 | J25: 1191544 | K25: FALSE | L25: -2 | M25: =SUM($O$2:O25) -> -24 | N25: =MAX($L$2:L25) -> 8 | O25: -2
H26: 25 | I26: 226712 | J26: 226712 | K26: FALSE | L26: 2 | M26: =SUM($O$2:O26) -> -22 | N26: =MAX($L$2:L26) -> 8 | O26: 2
H27: 26 | I27: 1162903 | J27: 1162903 | K27: FALSE | L27: -2 | M27: =SUM($O$2:O27) -> -24 | N27: =MAX($L$2:L27) -> 8 | O27: -2 | Z27: Ticket avec la valeur la plus haute : | AD27: =LOOKUP(Y12,H:H,N:N)+2 -> 10
H28: 27 | I28: 1130804 | J28: 1130804 | K28: FALSE | L28: -2 | M28: =SUM($O$2:O28) -> -26 | N28: =MAX($L$2:L28) -> 8 | O28: -2
H29: 28 | I29: 1486705 | J29: 1486705 | K29: FALSE | L29: -2 | M29: =SUM($O$2:O29) -> -28 | N29: =MAX($L$2:L29) -> 8 | O29: -2
H30: 29 | I30: 250611 | J30: 250611 | K30: FALSE | L30: 2 | M30: =SUM($O$2:O30) -> -26 | N30: =MAX($L$2:L30) -> 8 | O30: 2
H31: 30 | I31: 555736 | J31: 555736 | K31: FALSE | L31: -2 | M31: =SUM($O$2:O31) -> -28 | N31: =MAX($L$2:L31) -> 8 | O31: -2
H32: 31 | I32: 676007 | J32: 676007 | K32: FALSE | L32: -2 | M32: =SUM($O$2:O32) -> -30 | N32: =MAX($L$2:L32) -> 8 | O32: -2
H33: 32 | I33: 1471521 | J33: 1471521 | K33: FALSE | L33: -2 | M33: =SUM($O$2:O33) -> -32 | N33: =MAX($L$2:L33) -> 8 | O33: -2
H34: 33 | I34: 1174347 | J34: 1174347 | K34: FALSE | L34: -2 | M34: =SUM($O$2:O34) -> -34 | N34: =MAX($L$2:L34) -> 8 | O34: -2
H35: 34 | I35: 845173 | J35: 845173 | K35: FALSE | L35: -2 | M35: =SUM($O$2:O35) -> -36 | N35: =MAX($L$2:L35) -> 8 | O35: -2
H36: 35 | I36: 1345375 | J36: 1345375 | K36: FALSE | L36: -2 | M36: =SUM($O$2:O36) -> -38 | N36: =MAX($L$2:L36) -> 8 | O36: -2
H37: 36 | I37: 738992 | J37: 738992 | K37: FALSE | L37: -2 | M37: =SUM($O$2:O37) -> -40 | N37: =MAX($L$2:L37) -> 8 | O37: -2
H38: 37 | I38: 717729 | J38: 717729 | K38: FALSE | L38: -2 | M38: =SUM($O$2:O38) -> -42 | N38: =MAX($L$2:L38) -> 8 | O38: -2
H39: 38 | I39: 521336 | J39: 521336 | K39: FALSE | L39: -2 | M39: =SUM($O$2:O39) -> -44 | N39: =MAX($L$2:L39) -> 8 | O39: -2
H40: 39 | I40: 433596 | J40: 433596 | K40: FALSE | L40: -2 | M40: =SUM($O$2:O40) -> -46 | N40: =MAX($L$2:L40) -> 8 | O40: -2
H41: 40 | I41: 208775 | J41: 208775 | K41: FALSE | L41: 2 | M41: =SUM($O$2:O41) -> -44 | N41: =MAX($L$2:L41) -> 8 | O41: 2
H42: 41 | I42: 133406 | J42: 133406 | K42: FALSE | L42: 2 | M42: =SUM($O$2:O42) -> -42 | N42: =MAX($L$2:L42) -> 8 | O42: 2
H43: 42 | I43: 114294 | J43: 114294 | K43: FALSE | L43: 2 | M43: =SUM($O$2:O43) -> -40 | N43: =MAX($L$2:L43) -> 8 | O43: 2
H44: 43 | I44: 378134 | J44: 378134 | K44: FALSE | L44: -2 | M44: =SUM($O$2:O44) -> -42 | N44: =MAX($L$2:L44) -> 8 | O44: -2
H45: 44 | I45: 42865 | J45: 42865 | K45: FALSE | L45: 8 | M45: =SUM($O$2:O45) -> -34 | N45: =MAX($L$2:L45) -> 8 | O45: 8
H46: 45 | I46: 621156 | J46: 621156 | K46: FALSE | L46: -2 | M46: =SUM($O$2:O46) -> -36 | N46: =MAX($L$2:L46) -> 8 | O46: -2
H47: 46 | I47: 1324396 | J47: 1324396 | K47: FALSE | L47: -2 | M47: =SUM($O$2:O47) -> -38 | N47: =MAX($L$2:L47) -> 8 | O47: -2
H48: 47 | I48: 853118 | J48: 853118 | K48: FALSE | L48: -2 | M48: =SUM($O$2:O48) -> -40 | N48: =MAX($L$2:L48) -> 8 | O48: -2
H49: 48 | I49: 495319 | J49: 495319 | K49: FALSE | L49: -2 | M49: =SUM($O$2:O49) -> -42 | N49: =MAX($L$2:L49) -> 8 | O49: -2
H50: 49 | I50: 730926 | J50: 730926 | K50: FALSE | L50: -2 | M50: =SUM($O$2:O50) -> -44 | N50: =MAX($L$2:L50) -> 8 | O50: -2
H51: 50 | I51: 464765 | J51: 464765 | K51: FALSE | L51: -2 | M51: =SUM($O$2:O51) -> -46 | N51: =MAX($L$2:L51) -> 8 | O51: -2
H52: 51 | I52: 1212367 | J52: 1212367 | K52: FALSE | L52: -2 | M52: =SUM($O$2:O52) -> -48 | N52: =MAX($L$2:L52) -> 8 | O52: -2
H53: 52 | I53: 403727 | J53: 403727 | K53: FALSE | L53: -2 | M53: =SUM($O$2:O53) -> -50 | N53: =MAX($L$2:L53) -> 8 | O53: -2
H54: 53 | I54: 625635 | J54: 625635 | K54: FALSE | L54: -2 | M54: =SUM($O$2:O54) -> -52 | N54: =MAX($L$2:L54) -> 8 | O54: -2
H55: 54 | I55: 694149 | J55: 694149 | K55: FALSE | L55: -2 | M55: =SUM($O$2:O55) -> -54 | N55: =MAX($L$2:L55) -> 8 | O55: -2
H56: 55 | I56: 72385 | J56: 72385 | K56: FALSE | L56: 2 | M56: =SUM($O$2:O56) -> -52 | N56: =MAX($L$2:L56) -> 8 | O56: 2
H57: 56 | I57: 443242 | J57: 443242 | K57: FALSE | L57: -2 | M57: =SUM($O$2:O57) -> -54 | N57: =MAX($L$2:L57) -> 8 | O57: -2
H58: 57 | I58: 358771 | J58: 358771 | K58: FALSE | L58: 0 | M58: =SUM($O$2:O58) -> -54 | N58: =MAX($L$2:L58) -> 8 | O58: 0
H59: 58 | I59: 665419 | J59: 665419 | K59: FALSE | L59: -2 | M59: =SUM($O$2:O59) -> -56 | N59: =MAX($L$2:L59) -> 8 | O59: -2
H60: 59 | I60: 927837 | J60: 927837 | K60: FALSE | L60: -2 | M60: =SUM($O$2:O60) -> -58 | N60: =MAX($L$2:L60) -> 8 | O60: -2
H61: 60 | I61: 802323 | J61: 802323 | K61: FALSE | L61: -2 | M61: =SUM($O$2:O61) -> -60 | N61: =MAX($L$2:L61) -> 8 | O61: -2
H62: 61 | I62: 769078 | J62: 769078 | K62: FALSE | L62: -2 | M62: =SUM($O$2:O62) -> -62 | N62: =MAX($L$2:L62) -> 8 | O62: -2
H63: 62 | I63: 1114924 | J63: 1114924 | K63: FALSE | L63: -2 | M63: =SUM($O$2:O63) -> -64 | N63: =MAX($L$2:L63) -> 8 | O63: -2
H64: 63 | I64: 646647 | J64: 646647 | K64: FALSE | L64: -2 | M64: =SUM($O$2:O64) -> -66 | N64: =MAX($L$2:L64) -> 8 | O64: -2
H65: 64 | I65: 505380 | J65: 505380 | K65: FALSE | L65: -2 | M65: =SUM($O$2:O65) -> -68 | N65: =MAX($L$2:L65) -> 8 | O65: -2
H66: 65 | I66: 1259587 | J66: 1259587 | K66: FALSE | L66: -2 | M66: =SUM($O$2:O66) -> -70 | N66: =MAX($L$2:L66) -> 8 | O66: -2
H67: 66 | I67: =ROUND(RAND()*(1500000-1),0) -> 471529 | J67: 471529 | K67: =IF(I67<=$E$10,C75) -> FALSE | L67: =IF(I67>=$F$2,$C$2,(IF(I67>=$F$3,$C$3,IF(I67>=$F$4,$C$4,IF(I67>=$F$5,$C$5,IF(I67>=$F$6,$C$6,IF(I67>=$F$7,$C$7,IF(I67>=$F$8,$C$8,IF(I67>=$F$9,$C$9,IF(I67>=0,999)))))))))) -> -2 | M67: =SUM($O$2:O67) -> -72 | N67: =MAX($L$2:L67) -> 8 | O67: =IF(K67=FALSE,L67,C75) -> -2
H68: 67 | I68: 1431065 | J68: 1431065 | K68: FALSE | L68: -2 | M68: =SUM($O$2:O68) -> -74 | N68: =MAX($L$2:L68) -> 8 | O68: -2
H69: 68 | I69: 447803 | J69: =IF($J$1<2,I69) -> 447803 | K69: FALSE | L69: -2 | M69: =SUM($O$2:O69) -> -76 | N69: =MAX($L$2:L69) -> 8 | O69: -2
H70: 69 | I70: 998653 | J70: 998653 | K70: FALSE | L70: -2 | M70: =SUM($O$2:O70) -> -78 | N70: =MAX($L$2:L70) -> 8 | O70: -2
H71: 70 | I71: 635096 | J71: 635096 | K71: FALSE | L71: -2 | M71: =SUM($O$2:O71) -> -80 | N71: =MAX($L$2:L71) -> 8 | O71: -2
H72: 71 | I72: 552619 | J72: 552619 | K72: FALSE | L72: -2 | M72: =SUM($O$2:O72) -> -82 | N72: =MAX($L$2:L72) -> 8 | O72: -2
H73: 72 | I73: 378829 | J73: 378829 | K73: FALSE | L73: -2 | M73: =SUM($O$2:O73) -> -84 | N73: =MAX($L$2:L73) -> 8 | O73: -2
H74: 73 | I74: 374926 | J74: 374926 | K74: FALSE | L74: -2 | M74: =SUM($O$2:O74) -> -86 | N74: =MAX($L$2:L74) -> 8 | O74: -2
H75: 74 | I75: 829090 | J75: 829090 | K75: FALSE | L75: -2 | M75: =SUM($O$2:O75) -> -88 | N75: =MAX($L$2:L75) -> 8 | O75: -2
H76: 75 | I76: 807296 | J76: 807296 | K76: FALSE | L76: -2 | M76: =SUM($O$2:O76) -> -90 | N76: =MAX($L$2:L76) -> 8 | O76: -2
H77: 76 | I77: 722509 | J77: 722509 | K77: FALSE | L77: -2 | M77: =SUM($O$2:O77) -> -92 | N77: =MAX($L$2:L77) -> 8 | O77: -2
H78: 77 | I78: 474040 | J78: 474040 | K78: FALSE | L78: -2 | M78: =SUM($O$2:O78) -> -94 | N78: =MAX($L$2:L78) -> 8 | O78: -2
H79: 78 | I79: 805328 | J79: 805328 | K79: FALSE | L79: -2 | M79: =SUM($O$2:O79) -> -96 | N79: =MAX($L$2:L79) -> 8 | O79: -2
H80: 79 | I80: 106969 | J80: 106969 | K80: FALSE | L80: 2 | M80: =SUM($O$2:O80) -> -94 | N80: =MAX($L$2:L80) -> 8 | O80: 2
H81: 80 | I81: 418218 | J81: 418218 | K81: FALSE | L81: -2 | M81: =SUM($O$2:O81) -> -96 | N81: =MAX($L$2:L81) -> 8 | O81: -2
H82: 81 | I82: 900321 | J82: 900321 | K82: FALSE | L82: -2 | M82: =SUM($O$2:O82) -> -98 | N82: =MAX($L$2:L82) -> 8 | O82: -2
H83: 82 | I83: 526704 | J83: 526704 | K83: FALSE | L83: -2 | M83: =SUM($O$2:O83) -> -100 | N83: =MAX($L$2:L83) -> 8 | O83: -2
H84: 83 | I84: 413262 | J84: 413262 | K84: FALSE | L84: -2 | M84: =SUM($O$2:O84) -> -102 | N84: =MAX($L$2:L84) -> 8 | O84: -2
H85: 84 | I85: 913517 | J85: 913517 | K85: FALSE | L85: -2 | M85: =SUM($O$2:O85) -> -104 | N85: =MAX($L$2:L85) -> 8 | O85: -2
H86: 85 | I86: 330359 | J86: 330359 | K86: FALSE | L86: 0 | M86: =SUM($O$2:O86) -> -104 | N86: =MAX($L$2:L86) -> 8 | O86: 0
H87: 86 | I87: 1375074 | J87: 1375074 | K87: FALSE | L87: -2 | M87: =SUM($O$2:O87) -> -106 | N87: =MAX($L$2:L87) -> 8 | O87: -2
H88: 87 | I88: 1438729 | J88: 1438729 | K88: FALSE | L88: -2 | M88: =SUM($O$2:O88) -> -108 | N88: =MAX($L$2:L88) -> 8 | O88: -2
H89: 88 | I89: 746896 | J89: 746896 | K89: FALSE | L89: -2 | M89: =SUM($O$2:O89) -> -110 | N89: =MAX($L$2:L89) -> 8 | O89: -2
H90: 89 | I90: 64527 | J90: 64527 | K90: FALSE | L90: 8 | M90: =SUM($O$2:O90) -> -102 | N90: =MAX($L$2:L90) -> 8 | O90: 8
H91: 90 | I91: 817330 | J91: 817330 | K91: FALSE | L91: -2 | M91: =SUM($O$2:O91) -> -104 | N91: =MAX($L$2:L91) -> 8 | O91: -2
H92: 91 | I92: 1440871 | J92: 1440871 | K92: FALSE | L92: -2 | M92: =SUM($O$2:O92) -> -106 | N92: =MAX($L$2:L92) -> 8 | O92: -2
H93: 92 | I93: 1196957 | J93: 1196957 | K93: FALSE | L93: -2 | M93: =SUM($O$2:O93) -> -108 | N93: =MAX($L$2:L93) -> 8 | O93: -2
H94: 93 | I94: 1177715 | J94: 1177715 | K94: FALSE | L94: -2 | M94: =SUM($O$2:O94) -> -110 | N94: =MAX($L$2:L94) -> 8 | O94: -2
H95: 94 | I95: 398087 | J95: 398087 | K95: FALSE | L95: -2 | M95: =SUM($O$2:O95) -> -112 | N95: =MAX($L$2:L95) -> 8 | O95: -2
H96: 95 | I96: 744536 | J96: 744536 | K96: FALSE | L96: -2 | M96: =SUM($O$2:O96) -> -114 | N96: =MAX($L$2:L96) -> 8 | O96: -2
H97: 96 | I97: 422566 | J97: 422566 | K97: FALSE | L97: -2 | M97: =SUM($O$2:O97) -> -116 | N97: =MAX($L$2:L97) -> 8 | O97: -2
H98: 97 | I98: 882374 | J98: 882374 | K98: FALSE | L98: -2 | M98: =SUM($O$2:O98) -> -118 | N98: =MAX($L$2:L98) -> 8 | O98: -2
H99: 98 | I99: 1193692 | J99: 1193692 | K99: FALSE | L99: -2 | M99: =SUM($O$2:O99) -> -120 | N99: =MAX($L$2:L99) -> 8 | O99: -2
H100: 99 | I100: 629543 | J100: 629543 | K100: FALSE | L100: -2 | M100: =SUM($O$2:O100) -> -122 | N100: =MAX($L$2:L100) -> 8 | O100: -2
H101: 100 | I101: 1049928 | J101: 1049928 | K101: FALSE | L101: -2 | M101: =SUM($O$2:O101) -> -124 | N101: =MAX($L$2:L101) -> 8 | O101: -2
H102: 101 | I102: 69699 | J102: 69699 | K102: FALSE | L102: 2 | M102: =SUM($O$2:O102) -> -122 | N102: =MAX($L$2:L102) -> 8 | O102: 2
H103: 102 | I103: 634613 | J103: 634613 | K103: FALSE | L103: -2 | M103: =SUM($O$2:O103) -> -124 | N103: =MAX($L$2:L103) -> 8 | O103: -2
H104: 103 | I104: 594566 | J104: 594566 | K104: FALSE | L104: -2 | M104: =SUM($O$2:O104) -> -126 | N104: =MAX($L$2:L104) -> 8 | O104: -2
H105: 104 | I105: 1011508 | J105: 1011508 | K105: FALSE | L105: -2 | M105: =SUM($O$2:O105) -> -128 | N105: =MAX($L$2:L105) -> 8 | O105: -2
H106: 105 | I106: 423801 | J106: 423801 | K106: FALSE | L106: -2 | M106: =SUM($O$2:O106) -> -130 | N106: =MAX($L$2:L106) -> 8 | O106: -2
H107: 106 | I107: 1203277 | J107: 1203277 | K107: FALSE | L107: -2 | M107: =SUM($O$2:O107) -> -132 | N107: =MAX($L$2:L107) -> 8 | O107: -2
H108: 107 | I108: 1349768 | J108: 1349768 | K108: FALSE | L108: -2 | M108: =SUM($O$2:O108) -> -134 | N108: =MAX($L$2:L108) -> 8 | O108: -2
H109: 108 | I109: 1022943 | J109: 1022943 | K109: FALSE | L109: -2 | M109: =SUM($O$2:O109) -> -136 | N109: =MAX($L$2:L109) -> 8 | O109: -2
H110: 109 | I110: 827311 | J110: 827311 | K110: FALSE | L110: -2 | M110: =SUM($O$2:O110) -> -138 | N110: =MAX($L$2:L110) -> 8 | O110: -2
H111: 110 | I111: 372928 | J111: 372928 | K111: FALSE | L111: -2 | M111: =SUM($O$2:O111) -> -140 | N111: =MAX($L$2:L111) -> 8 | O111: -2
H112: 111 | I112: 1443474 | J112: 1443474 | K112: FALSE | L112: -2 | M112: =SUM($O$2:O112) -> -142 | N112: =MAX($L$2:L112) -> 8 | O112: -2
H113: 112 | I113: 734213 | J113: 734213 | K113: FALSE | L113: -2 | M113: =SUM($O$2:O113) -> -144 | N113: =MAX($L$2:L113) -> 8 | O113: -2
H114: 113 | I114: 892445 | J114: 892445 | K114: FALSE | L114: -2 | M114: =SUM($O$2:O114) -> -146 | N114: =MAX($L$2:L114) -> 8 | O114: -2
H115: 114 | I115: 207075 | J115: 207075 | K115: FALSE | L115: 2 | M115: =SUM($O$2:O115) -> -144 | N115: =MAX($L$2:L115) -> 8 | O115: 2
H116: 115 | I116: 770104 | J116: 770104 | K116: FALSE | L116: -2 | M116: =SUM($O$2:O116) -> -146 | N116: =MAX($L$2:L116) -> 8 | O116: -2
H117: 116 | I117: 1248153 | J117: 1248153 | K117: FALSE | L117: -2 | M117: =SUM($O$2:O117) -> -148 | N117: =MAX($L$2:L117) -> 8 | O117: -2
H118: 117 | I118: 850644 | J118: 850644 | K118: FALSE | L118: -2 | M118: =SUM($O$2:O118) -> -150 | N118: =MAX($L$2:L118) -> 8 | O118: -2
H119: 118 | I119: 1342197 | J119: 1342197 | K119: FALSE | L119: -2 | M119: =SUM($O$2:O119) -> -152 | N119: =MAX($L$2:L119) -> 8 | O119: -2
H120: 119 | I120: 1393359 | J120: 1393359 | K120: FALSE | L120: -2 | M120: =SUM($O$2:O120) -> -154 | N120: =MAX($L$2:L120) -> 8 | O120: -2
H121: 120 | I121: 1353801 | J121: 1353801 | K121: FALSE | L121: -2 | M121: =SUM($O$2:O121) -> -156 | N121: =MAX($L$2:L121) -> 8 | O121: -2
H122: 121 | I122: 1206164 | J122: 1206164 | K122: FALSE | L122: -2 | M122: =SUM($O$2:O122) -> -158 | N122: =MAX($L$2:L122) -> 8 | O122: -2
H123: 122 | I123: 1419482 | J123: 1419482 | K123: FALSE | L123: -2 | M123: =SUM($O$2:O123) -> -160 | N123: =MAX($L$2:L123) -> 8 | O123: -2
H124: 123 | I124: 810287 | J124: 810287 | K124: FALSE | L124: -2 | M124: =SUM($O$2:O124) -> -162 | N124: =MAX($L$2:L124) -> 8 | O124: -2
H125: 124 | I125: 409226 | J125: 409226 | K125: FALSE | L125: -2 | M125: =SUM($O$2:O125) -> -164 | N125: =MAX($L$2:L125) -> 8 | O125: -2
H126: 125 | I126: 1248288 | J126: 1248288 | K126: FALSE | L126: -2 | M126: =SUM($O$2:O126) -> -166 | N126: =MAX($L$2:L126) -> 8 | O126: -2
H127: 126 | I127: 1295671 | J127: 1295671 | K127: FALSE | L127: -2 | M127: =SUM($O$2:O127) -> -168 | N127: =MAX($L$2:L127) -> 8 | O127: -2
H128: 127 | I128: 556555 | J128: 556555 | K128: FALSE | L128: -2 | M128: =SUM($O$2:O128) -> -170 | N128: =MAX($L$2:L128) -> 8 | O128: -2
H129: 128 | I129: 815166 | J129: 815166 | K129: FALSE | L129: -2 | M129: =SUM($O$2:O129) -> -172 | N129: =MAX($L$2:L129) -> 8 | O129: -2
H130: 129 | I130: 1185345 | J130: 1185345 | K130: FALSE | L130: -2 | M130: =SUM($O$2:O130) -> -174 | N130: =MAX($L$2:L130) -> 8 | O130: -2
H131: 130 | I131: =ROUND(RAND()*(1500000-1),0) -> 1281294 | J131: 1281294 | K131: =IF(I131<=$E$10,C139) -> FALSE | L131: =IF(I131>=$F$2,$C$2,(IF(I131>=$F$3,$C$3,IF(I131>=$F$4,$C$4,IF(I131>=$F$5,$C$5,IF(I131>=$F$6,$C$6,IF(I131>=$F$7,$C$7,IF(I131>=$F$8,$C$8,IF(I131>=$F$9,$C$9,IF(I131>=0,999)))))))))) -> -2 | M131: =SUM($O$2:O131) -> -176 | N131: =MAX($L$2:L131) -> 8 | O131: =IF(K131=FALSE,L131,C139) -> -2
H132: 131 | I132: 448802 | J132: 448802 | K132: FALSE | L132: -2 | M132: =SUM($O$2:O132) -> -178 | N132: =MAX($L$2:L132) -> 8 | O132: -2
H133: 132 | I133: 501150 | J133: =IF($J$1<2,I133) -> 501150 | K133: FALSE | L133: -2 | M133: =SUM($O$2:O133) -> -180 | N133: =MAX($L$2:L133) -> 8 | O133: -2
H134: 133 | I134: 1064794 | J134: 1064794 | K134: FALSE | L134: -2 | M134: =SUM($O$2:O134) -> -182 | N134: =MAX($L$2:L134) -> 8 | O134: -2
H135: 134 | I135: 757553 | J135: 757553 | K135: FALSE | L135: -2 | M135: =SUM($O$2:O135) -> -184 | N135: =MAX($L$2:L135) -> 8 | O135: -2
H136: 135 | I136: 141156 | J136: 141156 | K136: FALSE | L136: 2 | M136: =SUM($O$2:O136) -> -182 | N136: =MAX($L$2:L136) -> 8 | O136: 2
H137: 136 | I137: 1463949 | J137: 1463949 | K137: FALSE | L137: -2 | M137: =SUM($O$2:O137) -> -184 | N137: =MAX($L$2:L137) -> 8 | O137: -2
H138: 137 | I138: 1169942 | J138: 1169942 | K138: FALSE | L138: -2 | M138: =SUM($O$2:O138) -> -186 | N138: =MAX($L$2:L138) -> 8 | O138: -2
H139: 138 | I139: 210015 | J139: 210015 | K139: FALSE | L139: 2 | M139: =SUM($O$2:O139) -> -184 | N139: =MAX($L$2:L139) -> 8 | O139: 2
H140: 139 | I140: 847688 | J140: 847688 | K140: FALSE | L140: -2 | M140: =SUM($O$2:O140) -> -186 | N140: =MAX($L$2:L140) -> 8 | O140: -2
H141: 140 | I141: 645539 | J141: 645539 | K141: FALSE | L141: -2 | M141: =SUM($O$2:O141) -> -188 | N141: =MAX($L$2:L141) -> 8 | O141: -2
H142: 141 | I142: 191272 | J142: 191272 | K142: FALSE | L142: 2 | M142: =SUM($O$2:O142) -> -186 | N142: =MAX($L$2:L142) -> 8 | O142: 2
H143: 142 | I143: 837651 | J143: 837651 | K143: FALSE | L143: -2 | M143: =SUM($O$2:O143) -> -188 | N143: =MAX($L$2:L143) -> 8 | O143: -2
H144: 143 | I144: 984080 | J144: 984080 | K144: FALSE | L144: -2 | M144: =SUM($O$2:O144) -> -190 | N144: =MAX($L$2:L144) -> 8 | O144: -2
H145: 144 | I145: 59715 | J145: 59715 | K145: FALSE | L145: 8 | M145: =SUM($O$2:O145) -> -182 | N145: =MAX($L$2:L145) -> 8 | O145: 8
H146: 145 | I146: 1320545 | J146: 1320545 | K146: FALSE | L146: -2 | M146: =SUM($O$2:O146) -> -184 | N146: =MAX($L$2:L146) -> 8 | O146: -2
H147: 146 | I147: 376152 | J147: 376152 | K147: FALSE | L147: -2 | M147: =SUM($O$2:O147) -> -186 | N147: =MAX($L$2:L147) -> 8 | O147: -2
H148: 147 | I148: 1159937 | J148: 1159937 | K148: FALSE | L148: -2 | M148: =SUM($O$2:O148) -> -188 | N148: =MAX($L$2:L148) -> 8 | O148: -2
H149: 148 | I149: 47831 | J149: 47831 | K149: FALSE | L149: 8 | M149: =SUM($O$2:O149) -> -180 | N149: =MAX($L$2:L149) -> 8 | O149: 8
H150: 149 | I150: 1427466 | J150: 1427466 | K150: FALSE | L150: -2 | M150: =SUM($O$2:O150) -> -182 | N150: =MAX($L$2:L150) -> 8 | O150: -2
H151: 150 | I151: 989805 | J151: 989805 | K151: FALSE | L151: -2 | M151: =SUM($O$2:O151) -> -184 | N151: =MAX($L$2:L151) -> 8 | O151: -2
H152: 151 | I152: 130485 | J152: 130485 | K152: FALSE | L152: 2 | M152: =SUM($O$2:O152) -> -182 | N152: =MAX($L$2:L152) -> 8 | O152: 2
H153: 152 | I153: 760384 | J153: 760384 | K153: FALSE | L153: -2 | M153: =SUM($O$2:O153) -> -184 | N153: =MAX($L$2:L153) -> 8 | O153: -2
H154: 153 | I154: 1426960 | J154: 1426960 | K154: FALSE | L154: -2 | M154: =SUM($O$2:O154) -> -186 | N154: =MAX($L$2:L154) -> 8 | O154: -2
H155: 154 | I155: 972620 | J155: 972620 | K155: FALSE | L155: -2 | M155: =SUM($O$2:O155) -> -188 | N155: =MAX($L$2:L155) -> 8 | O155: -2
H156: 155 | I156: 456191 | J156: 456191 | K156: FALSE | L156: -2 | M156: =SUM($O$2:O156) -> -190 | N156: =MAX($L$2:L156) -> 8 | O156: -2
H157: 156 | I157: 921482 | J157: 921482 | K157: FALSE | L157: -2 | M157: =SUM($O$2:O157) -> -192 | N157: =MAX($L$2:L157) -> 8 | O157: -2
H158: 157 | I158: 950021 | J158: 950021 | K158: FALSE | L158: -2 | M158: =SUM($O$2:O158) -> -194 | N158: =MAX($L$2:L158) -> 8 | O158: -2
H159: 158 | I159: 515374 | J159: 515374 | K159: FALSE | L159: -2 | M159: =SUM($O$2:O159) -> -196 | N159: =MAX($L$2:L159) -> 8 | O159: -2
H160: 159 | I160: 1306876 | J160: 1306876 | K160: FALSE | L160: -2 | M160: =SUM($O$2:O160) -> -198 | N160: =MAX($L$2:L160) -> 8 | O160: -2
H161: 160 | I161: 919973 | J161: 919973 | K161: FALSE | L161: -2 | M161: =SUM($O$2:O161) -> -200 | N161: =MAX($L$2:L161) -> 8 | O161: -2
H162: 161 | I162: 1138597 | J162: 1138597 | K162: FALSE | L162: -2 | M162: =SUM($O$2:O162) -> -202 | N162: =MAX($L$2:L162) -> 8 | O162: -2
H163: 162 | I163: 785956 | J163: 785956 | K163: FALSE | L163: -2 | M163: =SUM($O$2:O163) -> -204 | N163: =MAX($L$2:L163) -> 8 | O163: -2
H164: 163 | I164: 723112 | J164: 723112 | K164: FALSE | L164: -2 | M164: =SUM($O$2:O164) -> -206 | N164: =MAX($L$2:L164) -> 8 | O164: -2
H165: 164 | I165: 1376519 | J165: 1376519 | K165: FALSE | L165: -2 | M165: =SUM($O$2:O165) -> -208 | N165: =MAX($L$2:L165) -> 8 | O165: -2
H166: 165 | I166: 118506 | J166: 118506 | K166: FALSE | L166: 2 | M166: =SUM($O$2:O166) -> -206 | N166: =MAX($L$2:L166) -> 8 | O166: 2
H167: 166 | I167: 963365 | J167: 963365 | K167: FALSE | L167: -2 | M167: =SUM($O$2:O167) -> -208 | N167: =MAX($L$2:L167) -> 8 | O167: -2
H168: 167 | I168: 815327 | J168: 815327 | K168: FALSE | L168: -2 | M168: =SUM($O$2:O168) -> -210 | N168: =MAX($L$2:L168) -> 8 | O168: -2
H169: 168 | I169: 489552 | J169: 489552 | K169: FALSE | L169: -2 | M169: =SUM($O$2:O169) -> -212 | N169: =MAX($L$2:L169) -> 8 | O169: -2
H170: 169 | I170: 1458760 | J170: 1458760 | K170: FALSE | L170: -2 | M170: =SUM($O$2:O170) -> -214 | N170: =MAX($L$2:L170) -> 8 | O170: -2
H171: 170 | I171: 1438350 | J171: 1438350 | K171: FALSE | L171: -2 | M171: =SUM($O$2:O171) -> -216 | N171: =MAX($L$2:L171) -> 8 | O171: -2
H172: 171 | I172: 952048 | J172: 952048 | K172: FALSE | L172: -2 | M172: =SUM($O$2:O172) -> -218 | N172: =MAX($L$2:L172) -> 8 | O172: -2
H173: 172 | I173: 93516 | J173: 93516 | K173: FALSE | L173: 2 | M173: =SUM($O$2:O173) -> -216 | N173: =MAX($L$2:L173) -> 8 | O173: 2
H174: 173 | I174: 1331930 | J174: 1331930 | K174: FALSE | L174: -2 | M174: =SUM($O$2:O174) -> -218 | N174: =MAX($L$2:L174) -> 8 | O174: -2
H175: 174 | I175: 65131 | J175: 65131 | K175: FALSE | L175: 2 | M175: =SUM($O$2:O175) -> -216 | N175: =MAX($L$2:L175) -> 8 | O175: 2
H176: 175 | I176: 1181979 | J176: 1181979 | K176: FALSE | L176: -2 | M176: =SUM($O$2:O176) -> -218 | N176: =MAX($L$2:L176) -> 8 | O176: -2
H177: 176 | I177: 1129862 | J177: 1129862 | K177: FALSE | L177: -2 | M177: =SUM($O$2:O177) -> -220 | N177: =MAX($L$2:L177) -> 8 | O177: -2
H178: 177 | I178: 356150 | J178: 356150 | K178: FALSE | L178: 0 | M178: =SUM($O$2:O178) -> -220 | N178: =MAX($L$2:L178) -> 8 | O178: 0
H179: 178 | I179: 361153 | J179: 361153 | K179: FALSE | L179: 0 | M179: =SUM($O$2:O179) -> -220 | N179: =MAX($L$2:L179) -> 8 | O179: 0
H180: 179 | I180: 366061 | J180: 366061 | K180: FALSE | L180: -2 | M180: =SUM($O$2:O180) -> -222 | N180: =MAX($L$2:L180) -> 8 | O180: -2
H181: 180 | I181: 731378 | J181: 731378 | K181: FALSE | L181: -2 | M181: =SUM($O$2:O181) -> -224 | N181: =MAX($L$2:L181) -> 8 | O181: -2
H182: 181 | I182: 838121 | J182: 838121 | K182: FALSE | L182: -2 | M182: =SUM($O$2:O182) -> -226 | N182: =MAX($L$2:L182) -> 8 | O182: -2
H183: 182 | I183: 831058 | J183: 831058 | K183: FALSE | L183: -2 | M183: =SUM($O$2:O183) -> -228 | N183: =MAX($L$2:L183) -> 8 | O183: -2
H184: 183 | I184: 161967 | J184: 161967 | K184: FALSE | L184: 2 | M184: =SUM($O$2:O184) -> -226 | N184: =MAX($L$2:L184) -> 8 | O184: 2
H185: 184 | I185: 114684 | J185: 114684 | K185: FALSE | L185: 2 | M185: =SUM($O$2:O185) -> -224 | N185: =MAX($L$2:L185) -> 8 | O185: 2
H186: 185 | I186: 1273274 | J186: 1273274 | K186: FALSE | L186: -2 | M186: =SUM($O$2:O186) -> -226 | N186: =MAX($L$2:L186) -> 8 | O186: -2
H187: 186 | I187: 1018458 | J187: 1018458 | K187: FALSE | L187: -2 | M187: =SUM($O$2:O187) -> -228 | N187: =MAX($L$2:L187) -> 8 | O187: -2
H188: 187 | I188: 173321 | J188: 173321 | K188: FALSE | L188: 2 | M188: =SUM($O$2:O188) -> -226 | N188: =MAX($L$2:L188) -> 8 | O188: 2
H189: 188 | I189: 801481 | J189: 801481 | K189: FALSE | L189: -2 | M189: =SUM($O$2:O189) -> -228 | N189: =MAX($L$2:L189) -> 8 | O189: -2
H190: 189 | I190: 322227 | J190: 322227 | K190: FALSE | L190: 0 | M190: =SUM($O$2:O190) -> -228 | N190: =MAX($L$2:L190) -> 8 | O190: 0
H191: 190 | I191: 938119 | J191: 938119 | K191: FALSE | L191: -2 | M191: =SUM($O$2:O191) -> -230 | N191: =MAX($L$2:L191) -> 8 | O191: -2
H192: 191 | I192: 954704 | J192: 954704 | K192: FALSE | L192: -2 | M192: =SUM($O$2:O192) -> -232 | N192: =MAX($L$2:L192) -> 8 | O192: -2
H193: 192 | I193: 286399 | J193: 286399 | K193: FALSE | L193: 0 | M193: =SUM($O$2:O193) -> -232 | N193: =MAX($L$2:L193) -> 8 | O193: 0
H194: 193 | I194: 202755 | J194: 202755 | K194: FALSE | L194: 2 | M194: =SUM($O$2:O194) -> -230 | N194: =MAX($L$2:L194) -> 8 | O194: 2
H195: 194 | I195: =ROUND(RAND()*(1500000-1),0) -> 893126 | J195: 893126 | K195: =IF(I195<=$E$10,C203) -> FALSE | L195: =IF(I195>=$F$2,$C$2,(IF(I195>=$F$3,$C$3,IF(I195>=$F$4,$C$4,IF(I195>=$F$5,$C$5,IF(I195>=$F$6,$C$6,IF(I195>=$F$7,$C$7,IF(I195>=$F$8,$C$8,IF(I195>=$F$9,$C$9,IF(I195>=0,999)))))))))) -> -2 | M195: =SUM($O$2:O195) -> -232 | N195: =MAX($L$2:L195) -> 8 | O195: =IF(K195=FALSE,L195,C203) -> -2
H196: 195 | I196: 92322 | J196: 92322 | K196: FALSE | L196: 2 | M196: =SUM($O$2:O196) -> -230 | N196: =MAX($L$2:L196) -> 8 | O196: 2
H197: 196 | I197: 54466 | J197: =IF($J$1<2,I197) -> 54466 | K197: FALSE | L197: 8 | M197: =SUM($O$2:O197) -> -222 | N197: =MAX($L$2:L197) -> 8 | O197: 8
H198: 197 | I198: 709337 | J198: 709337 | K198: FALSE | L198: -2 | M198: =SUM($O$2:O198) -> -224 | N198: =MAX($L$2:L198) -> 8 | O198: -2
H199: 198 | I199: 1401382 | J199: 1401382 | K199: FALSE | L199: -2 | M199: =SUM($O$2:O199) -> -226 | N199: =MAX($L$2:L199) -> 8 | O199: -2
H200: 199 | I200: 1371125 | J200: 1371125 | K200: FALSE | L200: -2 | M200: =SUM($O$2:O200) -> -228 | N200: =MAX($L$2:L200) -> 8 | O200: -2
... 802 more rows
